[Event "67th Mexican-ch Open 2022"]
[Site "Chihuahua"]
[Date "2022.04.16"]
[Round "7.4"]
[White "Cordova, Emilio"]
[Black "Gonzalez Zamora, Juan Carlos"]
[Result "1/2-1/2"]
[ECO "A11"]
[WhiteElo "2534"]
[BlackElo "2544"]
[Annotator "TA"]
[PlyCount "60"]
[EventDate "2022.04.12"]
[EventType "swiss"]
[EventCountry "MEX"]
[SourceTitle "playchess.com"]
[Source "ChessBase"]
[SourceQuality "1"]
[TimeControl "5400+30"]

{[%evp 12,60,0,0,0,0,0,0,0,0,0,0,0,-15,-19,-53,-15,-12,-11,-33,0,0,0,0,0,0,0,0,0,0,0,-4,-3,-8,-8,-8,-8,-8,-8,-8,-8,-8,-8,-15,-16,-13,-13,-18,-20,-18,-17]} 1. Nf3 {[%emt 0:00:10]} d5 {[%emt 0:02:24][%cal Bd7d5,Bd5c4][%mdl 32]} 2. g3 {[%emt 0:00:14]} c6 {[%emt 0:00:29]} 3. Bg2 {[%emt 0:00:50]} Nf6 {[%emt 0:00:16]} 4. c4 {[%emt 0:01:41]} dxc4 {[%emt 0:01:13]} 5. O-O {[%emt 0:02:04]} Nbd7 {[%emt 0:00:52]} 6. Na3 {[%emt 0:02:44][%cal Bb1a3,Ba3c4,Bc4e5][%mdl 32]} Nb6 {[%emt 0:03:30]} 7. Qc2 {[%emt 0:04:01]} Be6 {[%emt 0:03:34][%cal Bc8e6,Be6g4,Bg4e2,Be2h5,Bh5f7][%mdl 32] A11: English Opening: 1...c6.} 8. Ng5 {[%emt 0:03:03]} Bg4 {[%emt 0:03:06]} 9. Nxc4 {[%emt 0:03:57]} Bxe2 {[%emt 0:05:47]} 10. Ne5 {[%emt 0:00:14]} Bh5 {[%emt 0:01:59]} 11. Re1 {[%emt 0:04:11][%cal Og3g4]} h6 {[%emt 0:05:06]} 12. Ngxf7 {[%emt 0:07:36]} Bxf7 {[%emt 0:00:10]} 13. b4 $1 {[%emt 0:00:11][%cal Ob4b5]} a6 {[%emt 0:02:39]} 14. a4 {[%emt 0:10:27][%cal Ba2a4,Ba4b5,Bb5c6,Bc6b7][%mdl 32]} g5 {[%emt 0:07:49] Hoping for ...Bg7.} 15. Rb1 {[%emt 0:05:18] [#] Strongly threatening b5.} Bg7 $146 {[%emt 0:03:05]} ({Predecessor:} 15... Rg8 16. b5 cxb5 17. Bxb7 Bd5 18. Bc6+ Bxc6 19. Qxc6+ Nbd7 20. d4 Qc8 21. Qf3 Rg7 {1-0 (38) Braun,A (2455)-Podvoysky,E (2331) LSS email 2015}) 16. b5 $1 {[%emt 0:00:41] The position is equal.} axb5 {[%emt 0:03:27]} 17. axb5 {[%emt 0:01:25]} Ra2 {[%emt 0:05:26]} 18. Nxf7 {[%emt 0:02:07]} Rxc2 {[%emt 0:00:27]} 19. Nxd8 {[%emt 0:00:07]} Kxd8 {[%emt 0:00:03]} 20. bxc6 {[%emt 0:00:07]} Nfd5 {[%emt 0:00:55]} 21. cxb7 {[%emt 0:00:28]} Kc7 {[%emt 0:00:14]} 22. Rb5 $132 {[%emt 0:02:23][%mdl 2048] White puts up resistance} Rd8 {[%emt 0:02:17]} 23. Ba3 {[%emt 0:00:56]} Bd4 {[%emt 0:03:36]} 24. Bxd5 {[%emt 0:02:37][%mdl 64] [#] Remove Defender. Chess con chili.} ({Reject} 24. Bxe7 Nxe7 25. Rxe7+ Kb8 $17) 24... Rxd5 {[%emt 0:01:58]} 25. Rxe7+ {[%emt 0:00:09]} ({Don't blunder} 25. Rxb6 $2 Bxb6 26. Rxe7+ Kb8 $19) 25... Kb8 {[%emt 0:01:32]} 26. Rxd5 {[%emt 0:01:19][%mdl 64] Remove Defender} Nxd5 {[%emt 0:00:07]} 27. Rd7 {[%emt 0:00:09] [#] Bd6+ is the strong threat.} Bc5 {[%emt 0:00:35]} 28. Bxc5 {[%emt 0:00:05]} Rxc5 {[%emt 0:00:05]} 29. Rd6 {[%emt 0:00:04]} h5 {[%emt 0:00:23][%cal Bh6h5,Bh5h4][%mdl 32]} 30. Rh6 {[%emt 0:00:06]} h4 {[%emt 0:00:21] A balanced but interesting game.  Weighted Error Value: White=0.03 (flawless) /Black=0.02 (flawless)} 1/2-1/2

[Event "67th Mexican-ch Open 2022"]
[Site "Chihuahua"]
[Date "2022.04.16"]
[Round "7.5"]
[White "Galaviz Medina, Sion Radamantys"]
[Black "Quesada Perez, Luis Ernesto"]
[Result "0-1"]
[ECO "A84"]
[WhiteElo "2374"]
[BlackElo "2517"]
[Annotator "TA"]
[PlyCount "136"]
[EventDate "2022.04.12"]
[EventType "swiss"]
[EventCountry "MEX"]
[SourceTitle "playchess.com"]
[Source "ChessBase"]
[SourceQuality "1"]
[TimeControl "5400+30"]

{[%evp 11,136,0,25,-22,-28,-27,-31,-77,-65,-53,-61,-66,-80,-129,-123,-114,-128,-126,-128,-116,-74,-169,-120,-122,-122,-129,-113,-125,-116,-129,-125,-271,-284,-298,-298,-297,-279,-301,-252,-252,-245,-268,-253,-257,-239,-257,-260,-269,-231,-420,-420,-550,-533,-500,-123,-145,-139,-140,-144,-145,-145,-130,-137,-132,-131,-164,-161,-174,-174,-208,-208,-214,-175,-169,0,-214,-213,-193,0,-180,-148,-166,-135,-163,-101,-96,-96,-112,-85,-88,-26,-111,-111,-111,-111,-243,-231,-250,-114,-263,-250,-252,-243,-577,-572,-600,-583,-787,-795,-815,-804,-778,-750,-827,-843,-794,-782,-1037,-1012,-955,-912,-758,-749,-703,-610,-729,-706]} 1. d4 {[%emt 0:00:04]} e6 {[%emt 0:00:13]} 2. c4 {[%emt 0:00:08]} f5 {[%emt 0:00:08]} 3. Nc3 {[%emt 0:01:30]} Nf6 {[%emt 0:00:06]} 4. Nf3 {[%emt 0:01:16]} Bb4 {[%emt 0:00:38]} 5. g3 {[%emt 0:15:32]} b6 {[%emt 0:00:06]} 6. Bg2 {[%emt 0:01:02]} Bb7 {[%emt 0:00:12] [#]} 7. Qa4 $146 {[%emt 0:01:59] A84: Dutch Defence: 2 c4 Miscellaneous.} (7. Qb3 $142 Bxc3+ 8. Qxc3 (8. bxc3 Nc6 $11)) ({Predecessor:} 7. Bd2 O-O 8. O-O Qe8 9. Rc1 Bxc3 10. Bxc3 d6 11. d5 e5 12. Nd2 a5 13. h3 Na6 14. f4 exf4 15. gxf4 Nc5 16. Qe1 {0-1 (29) Gumularz,S (2518)-Karjakin,S (2752) Chess.com INT 2020}) 7... Bxc3+ $11 {[%emt 0:01:04]} 8. bxc3 {[%emt 0:00:08]} O-O {[%emt 0:00:06]} 9. d5 {[%emt 0:23:10]} (9. Bg5 $15 {might be stronger.}) 9... Ne4 {[%emt 0:17:14]} 10. Ba3 {[%emt 0:20:29]} Qf6 {[%emt 0:00:25]} 11. Rc1 {[%emt 0:00:06]} d6 {[%emt 0:09:46]} 12. Qc2 {[%emt 0:08:59]} (12. Nd4 $142 exd5 13. cxd5) 12... exd5 $17 {[%emt 0:24:05]} 13. cxd5 {[%emt 0:00:07]} Bxd5 {[%emt 0:00:12]} 14. c4 {[%emt 0:00:06]} Bb7 {[%emt 0:00:04] &Nero is more active.} 15. Bb2 {[%emt 0:00:27]} Qf7 {[%emt 0:00:13]} 16. h4 {[%emt 0:06:22]} (16. c5 $17) 16... Nd7 {[%emt 0:05:28]} ({Better is} 16... h6 $19 17. O-O Nc5) 17. Ng5 {[%emt 0:07:46]} Qe7 {[%emt 0:01:36]} 18. Nh3 {[%emt 0:01:20]} Ndf6 {[%emt 0:02:08]} 19. O-O {[%emt 0:02:10]} Rae8 {[%emt 0:00:06]} 20. Nf4 {[%emt 0:01:11]} Ng4 {[%emt 0:00:25][%cal Oe4g3] ...Nxg3! is the strong threat.} 21. Qb3 {[%emt 0:01:12] [#]} (21. Qd1 $17 {was necessary.}) 21... Nd2 $1 $19 {[%emt 0:01:04][%csl LRb3,LRf1] Pair of Knights!} 22. Bxb7 {[%emt 0:00:04]} (22. Qc3 Bxg2) 22... Nxb3 {[%emt 0:00:08]} 23. axb3 {[%emt 0:00:07]} a5 {[%emt 0:04:24]} 24. Bd4 {[%emt 0:02:08]} Nf6 {[%emt 0:02:22]} 25. Bc6 {[%emt 0:00:05]} Qf7 {[%emt 0:01:53]} 26. f3 {[%emt 0:00:58] [#]} Re5 $1 {[%emt 0:00:26]} 27. Kf2 {[%emt 0:00:46]} (27. Rcd1 Kh8) 27... Rb8 {[%emt 0:02:12]} 28. Rfd1 {[%emt 0:02:37]} Kh8 {[%emt 0:03:13]} 29. Rd3 {[%emt 0:01:41]} h6 {[%emt 0:06:16]} 30. h5 $2 {[%emt 0:01:24]} (30. Re1) 30... Nxh5 {[%emt 0:13:19]} 31. Bxe5 {[%emt 0:00:04]} dxe5 {[%emt 0:00:05]} 32. Rd7 {[%emt 0:00:05]} Qxd7 {[%emt 0:02:48]} 33. Bxd7 $17 {[%emt 0:00:05]} exf4 {[%emt 0:00:04]} 34. gxf4 $19 {[%emt 0:00:14][%mdl 4096] Endgame KRB-KRN} g6 {[%emt 0:00:20]} 35. Rh1 {[%emt 0:00:57][%cal Od7f5]} Kg7 $1 {[%emt 0:01:27]} ({And not} 35... Nxf4 36. Rh4 Nh5 37. Bxf5 $15) 36. Bxf5 {[%emt 0:00:26]} Nxf4 {[%emt 0:00:01]} 37. Be4 {[%emt 0:00:19]} Ne6 {[%emt 0:00:46]} 38. Rb1 {[%emt 0:00:53]} Nc5 {[%emt 0:00:36]} 39. Bc2 {[%emt 0:00:39]} Rd8 {[%emt 0:00:10]} 40. Ke3 {[%emt 0:00:07]} g5 {[%emt 0:00:23]} 41. Rg1 {[%emt 0:01:09]} Kf6 {[%emt 0:00:21]} 42. Rh1 {[%emt 0:01:03]} Kg7 {[%emt 0:01:21]} 43. Rg1 {[%emt 0:00:04]} Ne6 {[%emt 0:00:23] Prevents f4.} 44. Be4 {[%emt 0:00:27]} Nc5 {[%emt 0:01:00]} 45. Bc2 {[%emt 0:00:05]} Re8+ {[%emt 0:01:10]} 46. Kf2 {[%emt 0:00:05]} Re7 {[%emt 0:00:06]} 47. f4 {[%emt 0:01:34] [#]} Kf6 {[%emt 0:00:14]} (47... Rf7 $1 $19 {[%cal Rf7f4]} 48. e3 Kf8) 48. Rh1 $17 {[%emt 0:00:04]} gxf4 {[%emt 0:00:45] Strongly threatening ...Re3.} 49. Rxh6+ {[%emt 0:00:04]} Ke5 {[%emt 0:00:08] Threatens to win with ...Kd4.} 50. e3 {[%emt 0:01:12]} Rd7 {[%emt 0:02:43]} ({Black should play} 50... Rf7 $17) 51. exf4+ {[%emt 0:00:34]} (51. Rh5+ $11 Kf6 52. Ke2) 51... Kxf4 {[%emt 0:00:08] White must now prevent ...Rd2+. White is on the road to losing.} 52. Ke2 {[%emt 0:00:03] Against Rd2+} Rg7 {[%emt 0:01:10]} 53. Rh4+ {[%emt 0:01:15] [#]} (53. Rh3 $17) 53... Ke5 $1 $19 {[%emt 0:00:08]} 54. Kf2 {[%emt 0:00:35]} Na6 {[%emt 0:00:54]} (54... Rg5 $19 {is more deadly.} 55. Rh7 Kd4) 55. Re4+ {[%emt 0:00:02]} (55. Bd1 $17) 55... Kd6 {[%emt 0:00:10]} 56. Bd1 {[%emt 0:00:58]} Kc5 {[%emt 0:00:24]} 57. Re3 $2 {[%emt 0:00:23]} (57. Ke3 {is a better chance.}) 57... Kb4 {[%emt 0:00:10] Black is clearly winning.} 58. Rh3 {[%emt 0:00:28]} Nc5 {[%emt 0:00:10]} 59. Bc2 {[%emt 0:00:09]} Re7 {[%emt 0:00:33]} 60. Kf1 {[%emt 0:00:57]} Ka3 {[%emt 0:00:13]} 61. Bd1 {[%emt 0:00:22]} Kb2 {[%emt 0:00:12]} 62. Rh2+ {[%emt 0:00:26]} Kc1 {[%emt 0:01:44]} 63. Bc2 {[%emt 0:00:06]} Re3 {[%emt 0:00:08]} 64. Bg6 {[%emt 0:00:50]} Rxb3 {[%emt 0:00:33]} 65. Rc2+ {[%emt 0:00:33]} Kd1 {[%emt 0:00:15]} 66. Ra2 {[%emt 0:00:08]} Rf3+ {[%emt 0:00:09]} 67. Kg2 {[%emt 0:00:05]} Rf4 {[%emt 0:00:13] aiming for ...Rg4+.} 68. Bc2+ {[%emt 0:00:40]} Kc1 {[%emt 0:00:08] Weighted Error Value: White=0.36/Black=0.27 (precise)} 0-1

[Event "67th Mexican-ch Open 2022"]
[Site "Chihuahua"]
[Date "2022.04.16"]
[Round "7.6"]
[White "Gonzalez Arroyo, Lenin"]
[Black "Cori Quispe, Kevin Joel"]
[Result "0-1"]
[ECO "B42"]
[WhiteElo "2210"]
[BlackElo "2492"]
[Annotator "TA"]
[PlyCount "50"]
[EventDate "2022.04.12"]
[EventType "swiss"]
[EventCountry "MEX"]
[SourceTitle "playchess.com"]
[Source "ChessBase"]
[SourceQuality "1"]
[TimeControl "5400+30"]

{[%evp 14,50,57,32,40,0,56,0,25,15,14,15,8,0,-15,-28,50,64,50,54,64,-23,-16,-50,-45,-91,-112,-120,-25,-105,-110,-97,-101,-107,-108,-130,-121,-721,-685]} 1. e4 {[%emt 0:00:05]} c5 {[%emt 0:04:41]} 2. Nf3 {[%emt 0:00:23]} e6 {[%emt 0:00:26]} 3. d4 {[%emt 0:01:01]} cxd4 {[%emt 0:00:09]} 4. Nxd4 {[%emt 0:00:33]} a6 {[%emt 0:00:07]} 5. Bd3 {[%emt 0:02:38]} Bc5 {[%emt 0:00:15]} 6. Nb3 {[%emt 0:01:35]} Be7 {[%emt 0:00:26]} 7. O-O {[%emt 0:02:25]} d6 {[%emt 0:00:53]} 8. f4 {[%emt 0:04:16]} Nd7 {[%emt 0:01:33] B42: Sicilian: Kan Variation: 5 Bd3.} 9. N1d2 {[%emt 0:05:32]} b6 {[%emt 0:07:01]} (9... Ngf6 $11) 10. Nf3 {[%emt 0:09:34]} Bb7 {[%emt 0:01:08] The position is equal.} 11. Qe2 {[%emt 0:01:24] [#]} Qc7 $146 {[%emt 0:09:12]} ({Predecessor:} 11... Bf6 12. c3 Ne7 13. Bd2 O-O 14. Rae1 Nc6 15. Nfd4 Qc7 16. Rf3 g6 17. Rh3 Rfe8 {1-0 (80) Dusper,H (2235)-Balog,M (2159) Harkany 2004}) 12. e5 {[%emt 0:04:02]} g6 {[%emt 0:14:29]} 13. f5 {[%emt 0:07:02]} gxf5 {[%emt 0:21:24][%cal Rd6e5]} 14. Bf4 {[%emt 0:00:58][%cal Od3f5]} dxe5 {[%emt 0:05:31]} (14... Bxf3 $11 15. Qxf3 Ra7 16. exd6 Bxd6) 15. Nxe5 $14 {[%emt 0:00:41]} Bd6 {[%emt 0:00:05] [#]} 16. Nxf7 {[%emt 0:19:39]} Kxf7 {[%emt 0:00:05][%cal Be8f7,Bf7e7,Be7d8][%mdl 32]} 17. Nd4 {[%emt 0:00:11]} ({Better is} 17. Bc4 $14 Bc5+ 18. Kh1 (18. Nxc5 Qxc5+ 19. Rf2 Re8 $11)) 17... Re8 $11 {[%emt 0:10:49]} (17... Bxf4 $2 18. Qxe6+ Kg7 19. Nxf5+ Kf8 20. Nd6 $18) 18. Qh5+ {[%emt 0:02:24]} Ke7 $1 {[%emt 0:01:12]} 19. Nxf5+ {[%emt 0:19:30]} exf5 $17 {[%emt 0:00:18]} 20. Rae1+ {[%emt 0:00:06] [#]} Be5 {[%emt 0:04:32]} (20... Be4 $1 $17 21. Bxe4 Ngf6 22. Bxd6+ (22. Bxf5+ Kd8 $17) 22... Kxd6 23. Rd1+ Ke7 24. Qxf5 Qc5+ 25. Rf2 Qxf5 26. Bxf5 Kd8) 21. Bxe5 {[%emt 0:00:40]} (21. Qg5+ $1 $11 {remains equal.} Kf8 22. Qxf5+ Ngf6 23. Bxe5 (23. Rxe5 Rxe5 24. Bxe5 Qc5+ 25. Rf2 Rg8 $17) 23... Rxe5 24. Rxe5 Qxe5 25. Qxe5 (25. Qxd7 $2 Qc5+ 26. Kh1 Bxg2+ 27. Kxg2 Rg8+ 28. Kh1 Rg1+ 29. Rxg1 Nxd7 $19) 25... Nxe5 26. Rxf6+ Ke7 27. Rxb6) 21... Nxe5 {[%emt 0:00:11]} 22. Rxf5 {[%emt 0:00:26] [#]} Kd8 $1 {[%emt 0:02:18][%cal Oe5f3] aiming for ...Nf3+!} 23. Rfxe5 {[%emt 0:02:31]} (23. Qg5+ Qe7) 23... Rxe5 {[%emt 0:00:08]} 24. Rxe5 {[%emt 0:00:05][%csl Ge5][%cal Rh5e8]} Ne7 {[%emt 0:00:26]} 25. Bxh7 $2 {[%emt 0:02:56][%mdl 8192] [#]} (25. Re3 $17) 25... Rxh7 $1 {[%emt 0:00:58][%mdl 512] Weighted Error Value: White=0.74/Black=0.15 (very precise)} 0-1

[Event "67th Mexican-ch Open 2022"]
[Site "Chihuahua"]
[Date "2022.04.16"]
[Round "7.7"]
[White "Ibarra Chami, Luis Fernando"]
[Black "Sandoval Mercado, Carlos"]
[Result "1-0"]
[ECO "A36"]
[WhiteElo "2451"]
[BlackElo "2289"]
[Annotator "TA"]
[PlyCount "97"]
[EventDate "2022.04.12"]
[EventType "swiss"]
[EventCountry "MEX"]
[SourceTitle "playchess.com"]
[Source "ChessBase"]
[SourceQuality "1"]
[TimeControl "5400+30"]

{[%evp 18,96,0,0,0,0,2,0,0,0,0,0,0,-33,-6,-46,-8,-35,-27,-36,-43,-79,-81,-74,-51,-47,-22,-29,-2,-10,0,-116,0,0,7,0,0,0,0,2,1,0,0,0,0,0,533,510,518,507,421,0,1047,1135,2388,2234,1849,1488,2540,2401,2928,2308,2435,2435,1218,1150,5147,2020,1969,1764,1688,1652,1618,1597,29996,29997,29997,29998,29998,29999,29999]} 1. c4 {[%emt 0:02:32]} Nf6 {[%emt 0:00:18]} 2. g3 {[%emt 0:00:21]} g6 {[%emt 0:00:16]} 3. Bg2 {[%emt 0:00:25]} Bg7 {[%emt 0:00:07]} 4. Nc3 {[%emt 0:00:18]} O-O {[%emt 0:00:12]} 5. e4 {[%emt 0:00:23]} d6 {[%emt 0:00:44]} 6. Nge2 {[%emt 0:00:11]} c5 {[%emt 0:00:53]} 7. O-O {[%emt 0:00:33]} Nc6 {[%emt 0:00:14]} 8. d3 {[%emt 0:00:22]} a6 {[%emt 0:01:05]} 9. h3 {[%emt 0:00:13]} Rb8 {[%emt 0:00:07]} 10. a4 {[%emt 0:00:05]} Nd7 {[%emt 0:00:08] A36: Symmetrical English vs ...g6: 4 Bg2 Bg7.} 11. Rb1 {[%emt 0:03:50]} e6 {[%emt 0:05:07]} 12. Be3 {[%emt 0:05:46]} Nd4 {[%emt 0:01:04] The position is equal.} 13. b4 {[%emt 0:03:55]} b6 {[%emt 0:02:30]} 14. Qd2 {[%emt 0:00:35]} Bb7 {[%emt 0:04:21] [#]} 15. Qa2 $146 {[%emt 0:05:47]} ({Predecessor:} 15. f4 f5 16. Bf2 Qc7 17. Kh2 Ba8 18. b5 a5 19. Rbe1 Rbe8 20. Bg1 Qd8 21. Kh1 {0-1 (46) Ibarra Chami,L (2423)-Albornoz Cabrera,C (2555) Merida 2019}) 15... Qe7 {[%emt 0:08:48]} 16. f4 {[%emt 0:23:55]} f5 {[%emt 0:22:53]} 17. a5 {[%emt 0:19:02]} Nc6 {[%emt 0:13:30]} 18. bxc5 {[%emt 0:03:49]} bxc5 {[%emt 0:02:52]} 19. exf5 {[%emt 0:05:51][%cal Ob1b7]} Nb4 {[%emt 0:01:49]} 20. Qd2 {[%emt 0:00:15]} Bxg2 {[%emt 0:00:25]} ({But not} 20... gxf5 $6 21. Bxb7 Rxb7 22. d4 $11) 21. Kxg2 {[%emt 0:00:04]} gxf5 {[%emt 0:07:16]} 22. d4 {[%emt 0:07:34]} Nf6 {[%emt 0:01:41]} 23. Rfd1 {[%emt 0:01:23]} Rfd8 {[%emt 0:04:59]} 24. Ng1 {[%emt 0:01:05]} (24. Bf2 $11 {keeps the balance.}) 24... Ne4 {[%emt 0:06:11]} (24... d5 $1 $17 25. cxd5 Nfxd5) 25. Nxe4 $11 {[%emt 0:00:07]} fxe4 {[%emt 0:00:02]} 26. Ne2 {[%emt 0:02:39]} Nd3 {[%emt 0:02:03]} 27. Rb6 {[%emt 0:04:07]} Rxb6 {[%emt 0:08:17]} 28. axb6 {[%emt 0:00:04]} Qb7 $1 {[%emt 0:00:03] Strongly threatening ...cxd4.} 29. dxc5 {[%emt 0:00:35]} dxc5 {[%emt 0:00:22][%cal Od3f4] Threatens to win with ...Nxf4+!} 30. Qa5 $1 {[%emt 0:00:16]} Rd6 {[%emt 0:02:44]} 31. Rb1 {[%emt 0:01:31]} Bd4 $2 {[%emt 0:03:00][%mdl 8192] Black is now going downhill.} (31... Rc6 $11 {and Black is okay.}) 32. Nxd4 $18 {[%emt 0:00:18]} cxd4 {[%emt 0:00:33]} 33. Qg5+ {[%emt 0:00:08]} Kf7 {[%emt 0:00:04] [#]} 34. Qh5+ $2 {[%emt 0:01:15]} (34. c5 $1 $18 Rd5 35. Qh6 Nxc5 36. Qxh7+ Ke8 37. Qh8+ Kd7 38. Bxd4) 34... Kf8 $2 {[%emt 0:00:47][%mdl 8192] [#]} (34... Kg7 $11) 35. c5 $1 {[%emt 0:00:49]} Rd7 {[%emt 0:01:39]} (35... Rd8 36. Bxd4) 36. Qh6+ {[%emt 0:00:13]} Kf7 {[%emt 0:00:34]} 37. Qxh7+ {[%emt 0:00:07]} Ke8 {[%emt 0:00:03]} 38. Qg6+ {[%emt 0:00:38]} Ke7 {[%emt 0:00:58] [#]} 39. f5 $1 {[%emt 0:02:45] White threatens Qg7+ and mate.} Nxc5 {[%emt 0:00:04] [#]} 40. Bxd4 $1 {[%emt 0:01:41][%mdl 512]} e3+ {[%emt 0:00:17]} (40... Rxd4 41. Qg7+) 41. Kh2 {[%emt 0:00:06]} Qd5 {[%emt 0:01:23]} 42. Rd1 {[%emt 0:01:02]} (42. Qg7+ $142 Ke8 43. Qg8+ Ke7 {[#]} 44. b7 $1 Qa2+ 45. Rb2 Qxb2+ 46. Bxb2 Rxb7 47. Ba3) 42... Qa2+ {[%emt 0:00:29]} 43. Kh1 {[%emt 0:00:06]} Qd5+ {[%emt 0:00:31]} 44. Kg1 {[%emt 0:00:05] Bxc5+ would kill now.} e2 {[%emt 0:00:34]} 45. Bf6+ {[%emt 0:00:46]} Kf8 {[%emt 0:00:01]} 46. Qh6+ {[%emt 0:00:09] White mates.} Kg8 {[%emt 0:00:41]} 47. Qh8+ {[%emt 0:00:05]} Kf7 {[%emt 0:00:08]} 48. Qg7+ {[%emt 0:00:03]} Ke8 {[%emt 0:00:04]} 49. Qg8# {[%emt 0:07:11] Weighted Error Value: White=0.34/Black=0.58} 1-0

[Event "67th Mexican-ch Open 2022"]
[Site "Chihuahua"]
[Date "2022.04.16"]
[Round "7.8"]
[White "Rascon Vega, Alfonso"]
[Black "Perez Gormaz, Matias"]
[Result "0-1"]
[ECO "B14"]
[WhiteElo "2107"]
[BlackElo "2404"]
[Annotator "TA"]
[PlyCount "60"]
[EventDate "2022.04.12"]
[EventType "swiss"]
[EventCountry "MEX"]
[SourceTitle "playchess.com"]
[Source "ChessBase"]
[SourceQuality "1"]
[TimeControl "5400+30"]

{[%evp 21,60,24,27,-10,-6,-13,-4,-64,-30,-113,-113,-211,-198,-192,-188,-247,-245,-225,-233,-441,-440,-439,-437,-734,-739,-1241,-1250,-1250,-1260,-1262,-1251,-1158,-850,-893,-869,-1547,-1532,-1531,-1440,-1383,-1153]} 1. e4 {[%emt 0:04:46]} c6 {[%emt 0:02:35]} 2. d4 {[%emt 0:00:13]} d5 {[%emt 0:00:07]} 3. exd5 {[%emt 0:00:08]} cxd5 {[%emt 0:00:07]} 4. c4 {[%emt 0:00:05]} Nf6 {[%emt 0:00:05]} 5. Nc3 {[%emt 1:27:48]} g6 {[%emt 0:00:26]} 6. Qb3 {[%emt 0:00:00]} Bg7 {[%emt 0:00:09]} 7. cxd5 {[%emt 0:00:00]} O-O {[%emt 0:00:06]} 8. Be2 {[%emt 0:00:00]} Nbd7 {[%emt 0:00:06]} 9. Bf3 {[%emt 0:00:00]} Nb6 {[%emt 0:00:05]} 10. Nge2 {[%emt 0:00:00]} Bf5 {[%emt 0:00:07][%cal Bc8f5,Bf5d3,Bd3c4][%mdl 32]} 11. O-O {[%emt 0:00:00]} Bd3 {[%emt 0:00:05]} 12. Re1 {[%emt 0:00:00][%cal Od5d6] B14: Caro-Kann: Panov-Botvinnik Attack with 5...e6 and 5...g6.} (12. d6 {is more complex.} Qxd6 13. Bxb7 Bc4 14. Qc2) 12... Bc4 {[%emt 0:04:38]} 13. Qd1 {[%emt 0:00:00][%cal Od5d6]} Nfxd5 {[%emt 0:00:40] [#]} 14. Ng3 $146 {[%emt 0:00:00]} (14. Bg5 $11) ({Predecessor:} 14. Bg5 Qd7 15. Qd2 Rac8 16. Rad1 Nxc3 17. Nxc3 e6 18. Ne4 Nd5 19. Nc5 Qc7 20. Rc1 Bxa2 21. Nxe6 {½-½ (45) Perez Rodriguez,L (2324)-Ezat,M (2401) Chess.com INT 2020}) 14... Re8 {[%emt 0:12:56]} (14... Nb4 $5 {[%cal Rb4d3]} 15. Bxb7 Rb8 $15) 15. Nce4 {[%emt 0:00:00] [#]} (15. Bg5 $11) 15... Nb4 $1 $17 {[%emt 0:16:21][%csl LRa2,LRd4]} 16. Nc5 {[%emt 0:00:00]} (16. Nd2 $17 {was necessary.} Ba6 17. Nb3) 16... Qxd4 $19 {[%emt 0:02:21]} ({Stronger than} 16... Bxd4 17. Nxb7 Qd7 18. Ne2 $17) 17. a3 {[%emt 0:00:00]} Qxc5 {[%emt 0:06:17]} 18. Be3 {[%emt 0:00:00]} (18. Ne4 $142 Qb5 19. axb4) 18... Qb5 {[%emt 0:01:20]} 19. axb4 {[%emt 0:00:00]} Bxb2 {[%emt 0:00:10] And now ...Rad8 would win.} 20. Bc5 $2 {[%emt 0:00:00]} (20. Ra5 Qxb4 21. Bd2) 20... Bxa1 {[%emt 0:08:26] Black is clearly winning.} 21. Qxa1 {[%emt 0:00:00]} a5 {[%emt 0:07:52][%cal Ba7a5,Ba5b4,Bb4b3,Bb3b2][%mdl 32]} 22. Bxe7 {[%emt 0:00:00]} (22. Qc1 $142 Nd7 23. Bd4) 22... axb4 {[%emt 0:02:04]} 23. Qf6 {[%emt 0:00:00]} Nd7 {[%emt 0:00:56][%cal Bb6d7,Bd7c5,Bc5d3][%mdl 32]} 24. Qd4 {[%emt 0:00:00] [#]} Qc5 $3 {[%emt 0:12:01][%mdl 512]} 25. Qxc5 {[%emt 0:00:00]} Nxc5 {[%emt 0:00:07][%mdl 64] Pin} 26. h4 {[%emt 0:00:00]} Nd3 {[%emt 0:00:16]} 27. Re3 {[%emt 0:00:00]} b3 {[%emt 0:00:14] White must now prevent ...b2.} 28. Ne2 {[%emt 0:00:00]} b2 {[%emt 0:00:22]} 29. Nc3 {[%emt 0:00:00]} Ra1+ {[%emt 0:00:43]} 30. Kh2 {[%emt 0:00:00]} Rc1 {[%emt 0:00:18] White did not feel at home in the position after the opening.  Weighted Error Value: White=0.95/Black=0.17 (very precise)} 0-1